bitfinex/quotes_BTCUSD_20210101
["timestamp","ask_amount","ask_price","bid_price","bid_amount"]
[1609525228794,0.67027543,29220.0,29219.0,6.50159813]
[1609525230222,0.59114955,29220.0,29219.0,8.55159813]
[1609525230834,0.655,29232.0,29223.0,0.366293]
[1609525231027,0.6345,29233.0,29225.0,0.566293]
[1609525231320,0.6311,29235.0,29226.0,1.48843977]
[1609525231469,0.6311,29235.0,29227.0,1.560993]
[1609525231670,1.31521,29235.0,29229.0,0.41503277]
[1609525231869,0.68411,29235.0,29231.0,0.366293]
[1609525232064,0.68411,29235.0,29232.0,0.04873977]
[1609525232269,2.25,29234.0,29230.0,0.30271]
[1609525232467,0.576267,29233.0,29230.0,0.30271]
[1609525232666,0.576267,29233.0,29230.0,0.04271]
[1609525232967,0.94441,29233.0,29230.0,0.04271]
[1609525233208,0.89411,29233.0,29231.0,0.5127]
[1609525233407,0.366267,29232.0,29231.0,0.5127]
[1609525233603,0.888909,29232.0,29231.0,0.5127]
[1609525233801,0.68411,29232.0,29231.0,0.5127]
[1609525234004,0.68411,29232.0,29231.0,0.5129]
[1609525234205,1.050377,29232.0,29231.0,0.5129]
[1609525234416,1.100677,29232.0,29231.0,0.5129]
[1609525234614,1.180677,29232.0,29231.0,0.0002]
[1609525234812,1.180677,29232.0,29226.0,0.0002]
[1609525234813,0.204799,29231.0,29226.0,0.0002]
[1609525235012,0.366267,29229.0,29226.0,0.0002]
[1609525235208,0.416567,29229.0,29226.0,0.10146222]
[1609525235411,3.704799,29227.0,29226.0,0.10126222]
[1609525235708,4.388909,29227.0,29226.0,0.10126222]
[1609525235906,4.388909,29227.0,29226.0,0.09646222]
[1609525236111,0.85340625,29227.0,29226.0,0.0002]
[1609525236309,0.84411,29227.0,29226.0,0.0002]
[1609525236512,1.210427,29227.0,29225.0,0.6838]
[1609525236813,4.446617,29226.0,29225.0,0.0002]
[1609525237036,4.75941,29226.0,29220.0,0.366317]
[1609525237227,0.15,29225.0,29220.0,0.366317]
[1609525237632,0.82911,29225.0,29220.0,0.366317]
[1609525237831,0.67911,29225.0,29221.0,0.5129]
[1609525238133,0.67911,29225.0,29221.0,0.5131]
[1609525238531,0.67911,29225.0,29222.0,0.366317]
[1609525239129,0.67911,29225.0,29222.0,0.366517]
[1609525243588,0.67911,29225.0,29223.0,0.16]
[1609525243794,0.67911,29225.0,29224.0,0.366317]
[1609525244490,0.67911,29225.0,29224.0,0.0002]
[1609525244890,0.67911,29225.0,29222.0,0.366317]
[1609525245493,0.67911,29225.0,29222.0,0.366517]
[1609525245796,0.75911,29225.0,29222.0,0.366517]
[1609525246093,0.75911,29225.0,29222.0,0.366317]
[1609525246559,0.75911,29225.0,29220.0,0.0002]
[1609525246560,0.901715,29225.0,29220.0,0.0002]
[1609525246766,0.952015,29225.0,29221.0,0.366317]
[1609525246971,0.503117,29224.0,29220.0,0.0002]
[1609525247162,0.295,29223.0,29218.0,0.9932]
[1609525247368,0.219538,29222.0,29218.0,0.9932]
[1609525247558,0.978648,29222.0,29218.0,0.9932]
[1609525248066,0.366317,29220.0,29218.0,0.9932]
[1609525248462,1.095727,29220.0,29218.0,0.9932]
[1609525248662,6.399238,29219.0,29218.0,0.9932]
[1609525248870,7.078348,29219.0,29218.0,0.9932]
[1609525249064,7.488348,29219.0,29218.0,0.9932]
[1609525249460,7.488348,29219.0,29218.0,1.09654347]
[1609525250095,1.480953,29219.0,29218.0,1.09654347]
[1609525250562,4.081253,29219.0,29218.0,1.09654347]
[1609525251063,4.081253,29219.0,29218.0,0.9932]
[1609525251364,4.081253,29219.0,29218.0,0.0002]
[1609525251565,6.516317,29218.0,29217.0,0.001]
[1609525251763,7.068922,29218.0,29217.0,0.001]
[1609525251984,7.748032,29218.0,29217.0,0.1032894]
[1609525252180,7.748032,29218.0,29217.0,0.001]
[1609525252683,7.828032,29218.0,29217.0,0.001]
[1609525253280,7.828032,29218.0,29217.0,0.10317646]
[1609525253887,7.828032,29218.0,29217.0,0.001]
[1609525254780,7.828032,29218.0,29217.0,0.10329967]
[1609525255481,7.81799796,29218.0,29217.0,0.10329967]
[1609525255782,7.81799796,29218.0,29217.0,0.001]
[1609525256882,7.81799796,29218.0,29217.0,0.10499388]
[1609525257083,7.81799796,29218.0,29217.0,0.001]
[1609525258104,7.81799796,29218.0,29217.0,0.10509656]
[1609525258308,7.67539296,29218.0,29217.0,0.10509656]
[1609525260011,7.67539296,29218.0,29217.0,0.001]
[1609525260910,7.67539296,29218.0,29217.0,0.10421352]
[1609525261471,7.67539296,29218.0,29217.0,0.0008]
[1609525261870,7.67539296,29218.0,29217.0,0.0006]
[1609525262064,7.67539296,29218.0,29217.0,0.0008]
[1609525263166,3.9992,29217.0,29216.0,0.0006]
[1609525263398,10.5592,29217.0,29216.0,0.0006]
[1609525263597,11.407548,29217.0,29216.0,0.0006]
[1609525264296,11.487548,29217.0,29216.0,0.0006]
[1609525265903,5.337548,29217.0,29216.0,0.0006]
[1609525266208,5.257548,29217.0,29216.0,0.0006]
[1609525266400,5.337548,29217.0,29216.0,0.0006]
[1609525266608,5.257548,29217.0,29216.0,0.0006]
[1609525266809,5.257548,29217.0,29216.0,0.2008]
[1609525267027,5.257548,29217.0,29216.0,0.0008]
[1609525267537,4.847548,29217.0,29216.0,0.0008]
[1609525267732,5.04831,29217.0,29214.0,0.1974]
[1609525267929,5.04831,29217.0,29214.0,0.1824]
[1609525268126,5.04831,29217.0,29215.0,0.755152]
[1609525268330,5.04831,29217.0,29215.0,0.38875]
[1609525269029,0.776402,29216.0,29215.0,0.71955]
[1609525269333,1.08911,29216.0,29215.0,0.1822]
[1609525269525,1.08911,29216.0,29215.0,0.548602]
[1609525269830,1.08911,29216.0,29214.0,0.1824]
[1609525270426,0.67911,29216.0,29215.0,0.366402]
[1609525270825,0.67911,29216.0,29215.0,0.366602]
[1609525271326,0.67911,29216.0,29215.0,0.0002]
[1609525271529,0.67911,29216.0,29214.0,0.09625]
[1609525271931,5.526402,29215.0,29214.0,0.09625]
[1609525272131,6.205512,29215.0,29214.0,0.09625]
[1609525272436,1.455512,29215.0,29214.0,0.09625]
[1609525272649,1.08911,29215.0,29214.0,0.0004]
[1609525273452,1.08911,29215.0,29214.0,0.366802]
[1609525273752,0.67911,29215.0,29214.0,0.366802]
[1609525274455,0.67911,29215.0,29214.0,1.361502]
[1609525274654,0.67911,29215.0,29214.0,1.543702]
[1609525274852,0.67911,29215.0,29214.0,0.366802]
[1609525275055,0.67911,29215.0,29214.0,1.516502]
[1609525275353,0.67911,29215.0,29214.0,0.521802]
[1609525275853,0.67911,29215.0,29214.0,0.1554]
[1609525276057,0.92911,29215.0,29214.0,0.0004]
[1609525276256,1.295512,29215.0,29214.0,0.0004]
[1609525276503,0.67911,29215.0,29209.0,0.33257751]
[1609525276700,0.67911,29215.0,29210.0,0.366402]
[1609525277001,0.1303,29214.0,29210.0,0.516402]
[1609525277202,0.366402,29213.0,29209.0,0.33117751]
[1609525277398,1.045512,29213.0,29209.0,0.30117751]
[1609525277809,1.045512,29213.0,29208.0,0.0008]
[1609525277810,0.159106,29211.0,29208.0,0.0008]
[1609525278104,0.888516,29211.0,29208.0,0.0008]
[1609525278340,0.235,29210.0,29208.0,0.0008]
[1609525278543,4.866402,29209.0,29205.0,0.9858]
[1609525278737,1.045512,29209.0,29205.0,0.9858]
[1609525278933,0.67911,29209.0,29205.0,0.9858]
[1609525279242,0.67911,29209.0,29206.0,0.366402]
[1609525279243,0.75911,29209.0,29206.0,0.366402]
[1609525279535,0.75911,29209.0,29206.0,0.361402]
[1609525279731,0.75911,29209.0,29206.0,0.361602]
[1609525279936,0.75911,29209.0,29206.0,0.0002]
[1609525279937,0.366402,29208.0,29206.0,0.0002]
[1609525280135,1.235512,29208.0,29206.0,0.0002]
[1609525280336,1.235512,29208.0,29205.0,0.986]
[1609525281035,1.235512,29208.0,29205.0,0.976]
[1609525281236,1.045512,29208.0,29205.0,0.971]
[1609525281637,0.67911,29208.0,29205.0,0.971]
[1609525282066,1.97589,29207.0,29205.0,0.971]
[1609525282263,6.654016,29206.0,29205.0,0.971]
[1609525282465,11.05242964,29206.0,29205.0,0.0002]
[1609525282770,11.07022964,29206.0,29204.0,0.001]
[1609525283072,7.60559,29205.0,29204.0,0.001]
[1609525283270,7.90119,29205.0,29204.0,0.001]
[1609525283463,8.63249,29205.0,29204.0,0.001]
[1609525283670,8.65029,29205.0,29204.0,0.001]
[1609525284269,2.48249,29205.0,29204.0,0.001]
[1609525284687,6.1678,29204.0,29196.0,0.36648]
[1609525284877,0.36648,29203.0,29197.0,0.92367715]
[1609525285066,0.72941,29203.0,29197.0,0.91853897]
[1609525285269,0.72941,29203.0,29198.0,0.36648]
[1609525285473,0.75911,29202.0,29200.0,0.36648]
[1609525285672,0.75911,29202.0,29197.0,0.90337263]
[1609525285871,0.75911,29202.0,29198.0,0.36142252]
[1609525286174,0.75911,29202.0,29198.0,0.35533768]
[1609525286468,0.75911,29202.0,29198.0,1.2524832]
[1609525286769,0.781165,29202.0,29198.0,1.24519149]
[1609525286974,0.781165,29202.0,29199.0,0.14]
[1609525287177,0.781165,29202.0,29199.0,0.13381099]
[1609525287375,0.02210078,29197.0,29195.0,0.5133]
[1609525287572,0.02210078,29197.0,29196.0,0.89823799]
[1609525287790,0.75151078,29197.0,29196.0,0.0002]
[1609525287998,4.46805678,29197.0,29190.0,0.3589]
[1609525288200,0.030166,29191.0,29190.0,0.3589]
[1609525288495,1.909276,29191.0,29190.0,0.306103]
[1609525288691,0.709276,29191.0,29190.0,0.41086]
[1609525289087,0.709276,29191.0,29190.0,1.25919299]
[1609525290086,0.709276,29191.0,29190.0,1.16381065]
[1609525290289,0.709276,29191.0,29190.0,1.08880304]
[1609525290487,0.709276,29191.0,29190.0,1.26162034]
[1609525290688,0.709276,29191.0,29190.0,0.96415352]
[1609525291091,1.075884,29191.0,29190.0,0.95362382]
[1609525291284,1.075884,29191.0,29190.0,0.68862382]
[1609525291533,0.709276,29191.0,29190.0,0.68862382]
[1609525291932,0.709276,29191.0,29190.0,1.05523182]
[1609525292930,0.709276,29191.0,29190.0,1.05023182]
[1609525293129,0.709276,29191.0,29190.0,1.03550645]
[1609525295262,0.709276,29191.0,29190.0,0.366608]
[1609525296167,0.709276,29191.0,29190.0,0.4707803]
[1609525296367,0.709276,29191.0,29190.0,0.366608]
[1609525299093,0.709276,29191.0,29190.0,0.96099503]
[1609525299893,0.709276,29191.0,29190.0,0.94599503]
[1609525300497,0.709276,29191.0,29190.0,0.082364]
[1609525302496,0.709276,29191.0,29190.0,0.07689926]
[1609525302726,0.709276,29191.0,29190.0,0.07185675]
[1609525303333,0.81156472,29191.0,29190.0,0.07185675]
[1609525303531,0.81156472,29191.0,29190.0,0.17185675]
[1609525304235,0.709276,29191.0,29190.0,0.17185675]
[1609525305835,0.81318851,29191.0,29190.0,0.15685675]
[1609525306238,0.709276,29191.0,29190.0,0.15185675]
[1609525307316,0.81127696,29191.0,29190.0,0.15185675]
[1609525307516,0.709276,29191.0,29190.0,0.15185675]
[1609525307919,1.26182877,29191.0,29190.0,0.15185675]
[1609525308114,1.26182877,29191.0,29190.0,0.14685675]
[1609525308321,1.26182877,29191.0,29186.0,0.7485]
[1609525308524,1.26182877,29191.0,29188.0,0.217]
[1609525310122,1.26182877,29191.0,29186.0,0.5135]
[1609525310430,1.45682877,29191.0,29186.0,0.5085]
[1609525310635,1.46661,29190.0,29184.0,0.0002]
[1609525310935,0.36661,29188.0,29184.0,0.0002]
[1609525311123,6.51661,29185.0,29184.0,0.0002]
[1609525311327,8.09572,29185.0,29184.0,0.0002]
[1609525311530,1.0,29183.0,29179.0,0.05127145]
[1609525311724,5.11661,29180.0,29179.0,0.05147145]
[1609525311922,2.55572,29180.0,29179.0,0.05147145]
[1609525312139,1.74572,29180.0,29179.0,0.15363703]
[1609525312333,1.82572,29180.0,29179.0,0.15363703]
[1609525312746,1.32572,29180.0,29179.0,0.05147145]
[1609525312940,1.24572,29180.0,29179.0,0.05147145]
[1609525313636,1.24572,29180.0,29179.0,0.15324634]
[1609525314041,1.24572,29180.0,29179.0,0.0002]
[1609525314241,1.24572,29180.0,29178.0,0.0008]
[1609525314449,7.37211,29179.0,29178.0,0.0008]
[1609525314753,6.9,29178.0,29167.0,0.49329163]
[1609525315050,0.16536042,29177.0,29166.0,0.03406812]
[1609525315242,0.16536042,29177.0,29166.0,0.0006]
[1609525315443,0.84447042,29177.0,29166.0,0.0006]
[1609525316248,0.84447042,29177.0,29169.0,0.4987]
[1609525317538,0.67911,29177.0,29169.0,0.4987]
[1609525317761,0.67911,29177.0,29170.0,0.2]
[1609525318163,0.67911,29177.0,29170.0,0.30196056]
[1609525318462,0.67911,29177.0,29170.0,0.2002]
[1609525318866,6.15,29176.0,29164.0,0.44626812]
[1609525319164,4.97911,29176.0,29164.0,0.44626812]
[1609525319366,4.97911,29176.0,29166.0,0.5137]
[1609525319565,1.01911,29176.0,29166.0,0.5137]
[1609525319768,0.67911,29176.0,29168.0,0.01]
[1609525320163,0.87911,29176.0,29168.0,0.01]
[1609525320665,0.67911,29176.0,29168.0,0.01]
[1609525320866,0.87911,29176.0,29168.0,0.01]
[1609525321066,0.67911,29176.0,29168.0,0.01]
[1609525321576,0.84447042,29176.0,29168.0,0.01]
[1609525322007,0.67911,29176.0,29168.0,0.01]
[1609525322404,3.05,29175.0,29168.0,0.005]
[1609525322606,0.67911,29175.0,29168.0,0.005]
[1609525323206,0.67411,29175.0,29168.0,0.005]
[1609525323848,0.67411,29175.0,29168.0,0.015]
[1609525324354,0.67411,29175.0,29170.0,0.31328771]
[1609525324750,0.62594755,29175.0,29170.0,0.21143]
[1609525325555,0.62594755,29175.0,29170.0,0.72503]
[1609525325757,0.62594755,29175.0,29171.0,0.24]
[1609525326348,0.6368426,29175.0,29171.0,0.24]
[1609525326555,0.62818537,29175.0,29171.0,0.24]
[1609525326758,0.62818537,29175.0,29171.0,0.9247]
[1609525327777,0.56848483,29175.0,29171.0,2.4249]
[1609525327986,0.56848483,29175.0,29172.0,1.0]
[1609525328178,0.56848483,29175.0,29172.0,1.495]
[1609525328385,0.56848483,29175.0,29172.0,1.54170414]
[1609525328580,1.141e-05,29175.0,29173.0,1.82600302]
[1609525328897,0.95037221,29180.0,29175.0,4.15]
[1609525329090,0.95037221,29180.0,29177.0,0.5134]
[1609525329288,0.95037221,29180.0,29179.0,6.32744341]
[1609525329484,0.95037221,29180.0,29179.0,6.49244059]
[1609525329780,0.95037221,29180.0,29179.0,6.49264059]
[1609525330181,2.21e-06,29180.0,29179.0,7.98764059]
[1609525330488,0.56370978,29191.0,29179.0,7.08744059]
[1609525330784,0.57270715,29191.0,29186.0,0.17549378]
[1609525330983,0.57270715,29191.0,29186.0,0.39214378]
[1609525331178,0.57270715,29191.0,29186.0,0.39234378]
[1609525331889,0.73806757,29191.0,29186.0,0.21685]
[1609525332280,0.57270715,29191.0,29186.0,0.0002]
[1609525332486,0.57270715,29191.0,29185.0,0.5135]
[1609525332811,0.73806757,29191.0,29186.0,0.175]
[1609525333005,0.73806757,29191.0,29186.0,0.1752]
[1609525333612,0.57270715,29191.0,29186.0,0.1752]
[1609525336648,0.75,29190.0,29180.0,0.5334471]
[1609525336846,0.01099897,29190.0,29181.0,0.425]
[1609525337046,0.01099897,29190.0,29182.0,0.32600302]
[1609525338043,0.01099897,29190.0,29185.0,0.5133]
[1609525338242,0.01099897,29190.0,29186.0,0.175]
[1609525338671,0.01099897,29190.0,29186.0,0.17]
[1609525339374,0.00599897,29190.0,29186.0,0.17]
[1609525339675,0.00599897,29190.0,29186.0,0.1702]
[1609525339873,0.69116897,29190.0,29186.0,0.1702]
[1609525340276,0.69116897,29190.0,29186.0,0.0002]
[1609525340476,0.69116897,29190.0,29185.0,0.72436]
[1609525340684,0.69116897,29190.0,29188.0,0.12443587]
[1609525340882,0.69116897,29190.0,29188.0,0.30337587]
[1609525341479,0.69116897,29190.0,29188.0,0.40580802]
[1609525342603,0.69116897,29190.0,29188.0,0.30337587]
[1609525342807,0.69116897,29190.0,29188.0,0.17894]
[1609525343306,0.69116897,29190.0,29188.0,0.30337595]
[1609525343504,0.69116897,29190.0,29188.0,0.17894]
[1609525344106,0.69116897,29190.0,29188.0,0.30336846]
[1609525344304,0.69116897,29190.0,29188.0,0.4049578]
[1609525344511,0.69116897,29190.0,29184.0,0.34054803]
[1609525344711,0.69116897,29190.0,29185.0,0.73426]
[1609525344912,0.185,29189.0,29185.0,0.73426]
[1609525345104,0.19599897,29189.0,29185.0,0.73426]
[1609525345308,0.01099897,29189.0,29185.0,0.73446]
[1609525345513,0.68215777,29190.0,29186.0,2.05]
[1609525345706,0.68215777,29190.0,29187.0,0.0002]
[1609525346310,0.78215777,29190.0,29185.0,0.70149]
[1609525346523,0.35036042,29189.0,29185.0,0.0649]
[1609525346721,1.03251819,29189.0,29185.0,0.0002]
[1609525346914,0.22846812,29188.0,29181.0,0.0002]
[1609525347214,1.11062589,29188.0,29181.0,0.0002]
[1609525347415,0.415,29187.0,29179.0,0.78719458]
[1609525347715,1.09715777,29187.0,29180.0,0.06249874]
[1609525347963,1.09715777,29187.0,29180.0,0.0002]
[1609525347964,0.165,29186.0,29180.0,0.0002]
[1609525348257,0.84715777,29186.0,29180.0,0.0002]
[1609525348558,0.88215777,29186.0,29179.0,0.78719458]
[1609525349056,0.68215777,29186.0,29180.0,0.32600302]
[1609525349264,2.3,29185.0,29179.0,0.77736783]
[1609525349458,0.68215777,29186.0,29179.0,0.77736783]
[1609525349658,0.235,29184.0,29179.0,0.77736783]
[1609525349862,0.68215777,29186.0,29180.0,0.32600302]
[1609525350167,1.04751819,29186.0,29179.0,0.77736783]
[1609525350361,0.155,29185.0,29179.0,0.77736783]
[1609525350564,1.03715777,29185.0,29179.0,0.77736783]
[1609525350768,4.65,29184.0,29173.0,0.08560574]
[1609525350969,0.96119728,29183.0,29172.0,0.8557]
[1609525351166,0.44619728,29182.0,29178.0,0.6846]
[1609525351467,0.34,29181.0,29172.0,0.8557]
[1609525351733,0.14,29181.0,29172.0,0.8557]
[1609525352536,0.84751819,29182.0,29172.0,0.8557]
[1609525352735,0.24619728,29181.0,29172.0,0.8559]
[1609525352934,0.24619728,29180.0,29172.0,0.8559]
[1609525353143,0.68215777,29182.0,29174.0,0.5135]
[1609525353350,0.1,29179.0,29171.0,0.0002]
[1609525353550,0.4115577,29178.0,29171.0,0.0002]
[1609525353742,0.225,29177.0,29171.0,0.0002]
[1609525354047,0.5115577,29176.0,29170.0,0.037436]
[1609525354235,1.22718359,29176.0,29170.0,0.037436]
[1609525354444,0.03346812,29175.0,29170.0,0.037436]
[1609525354640,0.145,29174.0,29170.0,0.037436]
[1609525354839,0.82715777,29174.0,29170.0,0.037436]
[1609525355046,0.60754601,29174.0,29170.0,0.037436]
[1609525355243,0.165,29173.0,29170.0,0.037436]
[1609525355477,0.7703958,29173.0,29170.0,0.037436]
[1609525356870,0.7563846,29173.0,29170.0,0.037436]
[1609525358070,0.8563846,29173.0,29170.0,0.037436]
[1609525358570,0.77290643,29172.0,29170.0,0.037436]
[1609525358970,0.60754601,29172.0,29170.0,0.037436]
[1609525359474,2.65,29171.0,29161.0,0.40999666]
[1609525359672,3.25754601,29171.0,29161.0,0.40999666]
[1609525359873,0.24619728,29170.0,29161.0,0.40999666]
[1609525360573,0.24619728,29170.0,29165.0,0.12]
[1609525360774,0.85374329,29170.0,29165.0,0.12]
[1609525361000,0.60754601,29170.0,29165.0,0.12]
[1609525362503,0.59373497,29170.0,29165.0,0.12]
[1609525363003,0.59353481,29170.0,29165.0,0.12]
[1609525365766,0.59353481,29170.0,29161.0,0.74088148]
[1609525365767,1.05,29169.0,29161.0,0.74088148]
[1609525365975,0.59353481,29170.0,29167.0,0.12]
[1609525366169,0.59353481,29169.0,29167.0,0.12]
[1609525368014,0.57952361,29169.0,29167.0,0.12]
[1609525370261,3.15,29168.0,29160.0,0.80560082]
[1609525370463,0.21215434,29167.0,29165.0,0.12]
[1609525370660,0.57952361,29167.0,29165.0,0.12]
[1609525371456,0.57952361,29167.0,29165.0,0.0564]
[1609525371457,0.56557008,29167.0,29165.0,0.0564]
[1609525371655,0.55044617,29167.0,29165.0,0.0564]
[1609525372876,0.51989494,29167.0,29165.0,0.0564]
[1609525373578,0.50628406,29167.0,29165.0,0.0564]
[1609525373778,0.50628406,29167.0,29165.0,0.0566]
[1609525376083,0.48775278,29167.0,29165.0,0.0566]
[1609525377188,0.48775278,29167.0,29165.0,0.0564]
[1609525377912,3.63346812,29166.0,29165.0,0.0564]
[1609525378116,5.01215434,29165.0,29158.0,0.5138]
[1609525378307,4.97655434,29165.0,29155.0,2.27425687]
[1609525378511,0.69990712,29164.0,29155.0,0.856]
[1609525378712,0.1,29163.0,29154.0,0.9938]
[1609525378915,0.4663931,29162.0,29154.0,0.0006]
[1609525379109,0.1,29160.0,29154.0,0.0006]
[1609525379413,0.21215434,29158.0,29154.0,0.0006]
[1609525379611,1.13346812,29157.0,29154.0,0.0006]
[1609525379814,1.13346812,29157.0,29146.0,0.6536]
[1609525379815,1.07751476,29156.0,29146.0,0.6536]
[1609525380023,8.29562246,29155.0,29148.0,0.0002]
[1609525380316,0.21215434,29153.0,29148.0,0.0002]
[1609525380513,1.44357434,29152.0,29148.0,0.0002]
[1609525380716,0.21215434,29150.0,29148.0,0.0002]
[1609525380930,0.21215434,29150.0,29141.0,0.0002]
[1609525380931,6.15,29149.0,29141.0,0.0002]
[1609525381223,0.21215434,29147.0,29141.0,0.0002]
[1609525381512,0.57751476,29147.0,29141.0,0.0002]
[1609525381761,0.21215434,29146.0,29141.0,0.0004]
[1609525381969,0.67217775,29145.0,29135.0,0.09389882]
[1609525382166,0.235,29146.0,29136.0,0.5141]
[1609525382366,0.2,29148.0,29136.0,0.5141]
[1609525382562,0.83175352,29149.0,29136.0,0.5141]
[1609525382861,0.21215434,29148.0,29136.0,0.5091]
[1609525383064,0.21215434,29148.0,29136.0,0.49674415]
[1609525383469,6.35,29147.0,29136.0,0.5141]
[1609525383696,0.16536042,29145.0,29136.0,0.5141]
[1609525383901,0.16536042,29145.0,29129.0,0.06526949]
[1609525383902,1.2,29144.0,29129.0,0.06526949]
[1609525384098,0.74320454,29145.0,29128.0,0.9936]
[1609525384099,2.088827,29143.0,29128.0,0.9936]
[1609525384291,0.83499846,29142.0,29128.0,0.9936]
[1609525384595,0.21215434,29140.0,29128.0,0.9636]
[1609525384892,0.2,29140.0,29128.0,0.9636]
[1609525385091,0.2,29140.0,29128.0,1.4778]
[1609525385394,1.05106043,29141.0,29128.0,1.4678]
[1609525385594,0.16536042,29141.0,29129.0,0.24]
[1609525385790,0.16536042,29141.0,29129.0,0.2402]
[1609525386093,0.16536042,29141.0,29131.0,0.17980181]
[1609525386293,0.41215434,29143.0,29131.0,0.17480181]
[1609525386495,0.41215434,29143.0,29134.0,0.5142]
[1609525386792,0.57215434,29143.0,29134.0,0.5142]
[1609525386991,0.21215434,29142.0,29134.0,0.5142]
[1609525387321,0.66955836,29145.0,29137.0,0.23390155]
[1609525387525,1.13395836,29149.0,29136.0,0.24483507]
[1609525387835,0.69990712,29150.0,29136.0,0.24483507]
[1609525387836,0.48775278,29150.0,29142.0,0.46082013]
[1609525388426,0.21215434,29149.0,29142.0,0.46082013]
[1609525388619,0.48775278,29150.0,29142.0,0.46082013]
[1609525389330,0.48775278,29150.0,29143.0,1.5]
[1609525389539,0.45122574,29150.0,29147.0,0.42128093]
[1609525389726,0.41537244,29150.0,29147.0,0.42128093]
[1609525390023,0.41537244,29150.0,29147.0,0.31765485]
[1609525390225,0.4002651,29150.0,29148.0,0.24]
[1609525390423,0.4002651,29150.0,29148.0,0.4261]
[1609525390819,0.37187199,29150.0,29148.0,0.4263]
[1609525391124,0.26938212,29150.0,29148.0,0.4213]
[1609525391524,0.26283327,29150.0,29148.0,0.15696]
[1609525392226,0.76713183,29151.0,29148.0,0.15696]
[1609525392436,0.46095736,29168.0,29149.0,0.00345614]
[1609525392632,0.46664889,29168.0,29150.0,0.11964868]
[1609525392952,0.46664889,29168.0,29151.0,0.44023499]
[1609525393151,0.46664889,29168.0,29152.0,1.61964868]
[1609525393347,0.46664889,29168.0,29153.0,0.55930382]
[1609525393348,0.00569153,29168.0,29153.0,0.55930382]
[1609525393551,0.00569153,29168.0,29149.0,0.00345614]
[1609525393552,1.00569153,29168.0,29149.0,0.00345614]
[1609525393855,0.15,29173.0,29148.0,0.57044381]
[1609525393856,1.49594081,29167.0,29148.0,0.57044381]
[1609525394056,1.68247269,29166.0,29158.0,0.74168]
[1609525394249,1.0,29165.0,29158.0,0.74168]
[1609525394446,1.00569153,29165.0,29158.0,0.74168]
[1609525394650,0.00569153,29165.0,29158.0,0.74188]
[1609525395150,1.0,29169.0,29159.0,4.6]
[1609525395344,1.0,29169.0,29160.0,0.0002]
[1609525395947,3.1,29168.0,29159.0,2.5502]
[1609525396152,1.0,29167.0,29158.0,0.74168]
[1609525396351,1.41550887,29167.0,29158.0,0.74168]
[1609525396743,1.0,29166.0,29158.0,0.74168]
[1609525396887,0.98618896,29166.0,29158.0,0.74168]
[1609525397185,0.36704075,29165.0,29158.0,0.74168]
[1609525397388,0.21,29165.0,29158.0,0.74168]
[1609525398387,3.1,29168.0,29158.0,0.74168]
[1609525398629,0.98618896,29167.0,29158.0,0.74168]
[1609525398934,4.08618896,29168.0,29158.0,0.74168]
[1609525399328,0.98618896,29167.0,29158.0,0.74168]
[1609525399528,0.61,29166.0,29158.0,0.74168]
[1609525399730,0.61,29166.0,29158.0,0.74188]
[1609525399937,3.75,29165.0,29158.0,0.5138]
[1609525400130,0.65,29164.0,29158.0,0.5138]
[1609525400335,0.33180302,29163.0,29158.0,0.5138]
[1609525400531,0.65,29164.0,29158.0,0.5138]
[1609525400735,0.65,29164.0,29158.0,0.67461]
[1609525400933,0.19050887,29170.0,29158.0,0.67461]
[1609525401136,0.98618896,29169.0,29158.0,0.67461]
[1609525401342,0.98618896,29166.0,29158.0,0.16081]
[1609525401547,0.98618896,29162.0,29157.0,0.039]
[1609525401764,0.2,29167.0,29147.0,0.00345614]
[1609525401765,0.33180302,29159.0,29147.0,0.00345614]
[1609525401952,0.33180302,29159.0,29148.0,1.0]
[1609525401953,1.63889786,29158.0,29148.0,1.0]
[1609525402246,0.49050887,29156.0,29137.0,0.2781]
[1609525402471,0.98451192,29155.0,29137.0,1.5]
[1609525402669,1.27669783,29156.0,29137.0,1.5]
[1609525402670,1.17502079,29154.0,29137.0,1.5]
[1609525402970,0.35704075,29154.0,29137.0,1.5]
[1609525403173,0.23346812,29153.0,29137.0,1.5]
[1609525403469,0.2,29153.0,29141.0,0.514]
[1609525403772,0.35704075,29154.0,29141.0,0.68255]
[1609525403967,0.35704075,29154.0,29142.0,0.02]
[1609525404365,0.35704075,29154.0,29142.0,0.0202]
[1609525404565,0.35649767,29154.0,29142.0,0.0002]
[1609525404768,0.35,29153.0,29142.0,0.0002]
[1609525404968,0.35,29153.0,29141.0,0.68275]
[1609525405472,0.2,29153.0,29142.0,1.52]
[1609525405669,0.53180302,29152.0,29141.0,0.16855]
[1609525405870,2.595,29153.0,29141.0,0.16855]
[1609525406100,2.93802955,29153.0,29141.0,0.16855]
[1609525406274,0.39,29152.0,29141.0,0.16855]
[1609525406468,0.79144969,29152.0,29141.0,0.16855]
[1609525406772,0.79144969,29152.0,29147.0,0.5139]
[1609525407071,0.33302955,29152.0,29147.0,0.5139]
[1609525407266,0.505,29151.0,29147.0,0.5139]
[1609525408297,0.19,29152.0,29147.0,0.5139]
[1609525408499,0.69188826,29157.0,29147.0,0.69249]
[1609525408808,0.23346812,29156.0,29147.0,0.69269]
[1609525409500,0.22846812,29156.0,29147.0,0.69269]
[1609525409708,0.45842014,29157.0,29147.0,0.69269]
[1609525410014,0.85669767,29167.0,29148.0,0.005]
[1609525410312,0.14302955,29165.0,29148.0,0.45955626]
[1609525410506,0.95748295,29164.0,29148.0,0.0052]
[1609525410702,0.27161818,29163.0,29149.0,0.005]
[1609525410902,0.145,29163.0,29149.0,0.0052]
[1609525411102,0.41666713,29163.0,29149.0,0.0052]
[1609525411305,0.27166713,29163.0,29150.0,0.005]
[1609525411505,0.68578,29164.0,29150.0,0.005]